fUST/lending_fUST_20241127
["ID","MTS","AMOUNT","RATE_DAILY","PERIOD"]
[343515414,1732705850454,-500.0,0.00027397,3]
[343515415,1732705850464,-500.0,0.00027397,3]
[343515416,1732705850473,-500.0,0.00027397,3]
[343515417,1732705850482,-506.52214374,0.00027397,3]
[343515418,1732705850491,-500.0,0.00027397,3]
[343515419,1732705850503,-500.0,0.00027397,3]
[343515420,1732705850512,-500.0,0.00027397,3]
[343515421,1732705850522,-500.0,0.00027397,3]
[343515422,1732705850532,-500.0,0.00027397,3]
[343515423,1732705850541,-500.0,0.00027397,3]
[343515424,1732705850551,-500.0,0.00027397,3]
[343515425,1732705850560,-500.0,0.00027397,3]
[343515426,1732705850569,-500.0,0.00027397,3]
[343515427,1732705850579,-500.0,0.00027397,3]
[343515428,1732705850589,-500.0,0.00027397,3]
[343515429,1732705850598,-500.0,0.00027397,3]
[343515430,1732705850607,-500.0,0.00027397,3]
[343515431,1732705850617,-512.82644351,0.00027397,3]
[343515432,1732705850627,-500.0,0.00027397,3]
[343515433,1732705850636,-500.0,0.00027397,3]
[343515434,1732705850646,-500.0,0.00027397,3]
[343515435,1732705850657,-500.0,0.00027397,3]
[343515436,1732705850666,-500.0,0.00027397,3]
[343515437,1732705850676,-500.0,0.00027397,3]
[343515438,1732705850685,-151.22,0.00027397,3]
[343515439,1732705850695,-413.94650565,0.00027397,2]
[343515440,1732705850704,-582.55039606,0.00027397,3]
[343515441,1732705850714,-500.0,0.00027397,3]
[343515442,1732705850724,-500.0,0.00027397,3]
[343515443,1732705850733,-500.0,0.00027397,3]
[343515444,1732705850743,-500.0,0.00027397,3]
[343515445,1732705850753,-500.0,0.00027397,3]
[343515446,1732705850763,-500.0,0.00027397,3]
[343515447,1732705850773,-500.0,0.00027397,3]
[343515448,1732705850783,-500.0,0.00027397,3]
[343515449,1732705850793,-500.0,0.00027397,3]
[343515450,1732705850804,-500.0,0.00027397,3]
[343515451,1732705850814,-500.0,0.00027397,3]
[343515452,1732705850824,-500.0,0.00027397,3]
[343515453,1732705850834,-500.0,0.00027397,3]
[343515454,1732705850843,-500.0,0.00027397,3]
[343515455,1732705850853,-500.0,0.00027397,3]
[343515456,1732705850863,-500.0,0.00027397,3]
[343515457,1732705850873,-500.0,0.00027397,3]
[343515458,1732705850884,-500.0,0.00027397,3]
[343515459,1732705850894,-500.0,0.00027397,3]
[343515460,1732705850904,-500.0,0.00027397,3]
[343515461,1732705850914,-500.0,0.00027397,3]
[343515462,1732705851011,-500.0,0.00027397,3]
[343515463,1732705851022,-500.0,0.00027397,3]
[343515464,1732705851033,-500.0,0.00027397,3]
[343515465,1732705851043,-500.0,0.00027397,3]
[343515466,1732705851053,-500.0,0.00027397,3]
[343515467,1732705851063,-500.0,0.00027397,3]
[343515468,1732705851078,-500.0,0.00027397,3]
[343515469,1732705851090,-500.0,0.00027397,3]
[343515470,1732705851108,-500.0,0.00027397,3]
[343515471,1732705851124,-500.0,0.00027397,3]
[343515472,1732705851134,-500.0,0.00027397,3]
[343515473,1732705851144,-500.0,0.00027397,3]
[343515474,1732705851154,-500.0,0.00027397,3]
[343515475,1732705851164,-500.0,0.00027397,3]
[343515476,1732705851174,-500.0,0.00027397,3]
[343515477,1732705851184,-500.0,0.00027397,3]
[343515478,1732705851194,-500.0,0.00027397,3]
[343515479,1732705851204,-500.0,0.00027397,3]
[343515480,1732705851214,-500.0,0.00027397,3]
[343515481,1732705851224,-500.0,0.00027397,3]
[343515482,1732705851233,-500.0,0.00027397,3]
[343515483,1732705851256,-500.0,0.00027397,3]
[343515484,1732705851266,-500.0,0.00027397,3]
[343515485,1732705851276,-500.0,0.00027397,3]
[343515486,1732705851286,-500.0,0.00027397,3]
[343515487,1732705851295,-500.0,0.00027397,3]
[343515488,1732705851306,-500.0,0.00027397,3]
[343515489,1732705851315,-500.0,0.00027397,3]
[343515490,1732705851325,-500.0,0.00027397,3]
[343515491,1732705851334,-500.0,0.00027397,3]
[343515492,1732705851343,-500.0,0.00027397,3]
[343515493,1732705851353,-500.0,0.00027397,3]
[343515494,1732705851363,-500.0,0.00027397,3]
[343515495,1732705851372,-500.0,0.00027397,3]
[343515496,1732705851382,-500.0,0.00027397,3]
[343515497,1732705851392,-500.0,0.00027397,3]
[343515498,1732705851402,-500.0,0.00027397,3]
[343515499,1732705851411,-500.0,0.00027397,3]
[343515500,1732705851421,-500.0,0.00027397,3]
[343515501,1732705851431,-500.0,0.00027397,3]
[343515502,1732705851440,-500.0,0.00027397,3]
[343515503,1732705851450,-611.97446235,0.00027397,3]
[343515504,1732705851459,-500.0,0.00027397,3]
[343515505,1732705851468,-500.0,0.00027397,3]
[343515506,1732705851478,-500.0,0.00027397,3]
[343515507,1732705851487,-500.0,0.00027397,3]
[343515508,1732705851496,-500.0,0.00027397,3]
[343515509,1732705851510,-307.46907335,0.00027397,3]
[343515510,1732705851523,-500.0,0.00027397,3]
[343515511,1732705851533,-502.65872866,0.00027397,3]
[343515512,1732705851543,-500.0,0.00027397,3]
[343515513,1732705851552,-500.0,0.00027397,3]
[343515514,1732705851561,-500.0,0.00027397,3]
[343515515,1732705851570,-500.0,0.00027397,3]
[343515516,1732705851579,-500.0,0.00027397,3]
[343515517,1732705851589,-500.0,0.00027397,3]
[343515518,1732705851598,-500.0,0.00027397,3]
[343515519,1732705851607,-563.56650312,0.00027397,3]
[343515520,1732705851615,-500.0,0.00027397,3]
[343515521,1732705851625,-500.0,0.00027397,3]
[343515522,1732705851635,-500.0,0.00027397,3]
[343515523,1732705851644,-500.0,0.00027397,3]
[343515524,1732705851654,-500.0,0.00027397,3]
[343515525,1732705851663,-500.0,0.00027397,3]
[343515526,1732705851672,-506.45099897,0.00027397,3]
[343515527,1732705851682,-500.0,0.00027397,3]
[343515528,1732705851692,-500.0,0.00027397,3]
[343515529,1732705851701,-500.0,0.00027397,3]
[343515530,1732705851711,-500.0,0.00027397,3]
[343515531,1732705851720,-500.0,0.00027397,3]
[343515532,1732705851730,-500.0,0.00027397,3]
[343515533,1732705851739,-500.0,0.00027397,3]
[343515534,1732705851751,-500.0,0.00027397,3]
[343515535,1732705851760,-500.0,0.00027397,3]
[343515536,1732705851770,-597.97,0.00027397,3]
[343515537,1732705851779,-500.0,0.00027397,3]
[343515538,1732705851789,-597.97,0.00027397,3]
[343515539,1732705851798,-500.0,0.00027397,3]
[343515540,1732705851807,-500.0,0.00027397,3]
[343515541,1732705851817,-597.97,0.00027397,3]
[343515542,1732705851826,-500.0,0.00027397,3]
[343515543,1732705851837,-500.0,0.00027397,3]
[343515544,1732705851847,-597.97,0.00027397,3]
[343515545,1732705851856,-597.97,0.00027397,3]
[343515546,1732705851866,-597.97,0.00027397,3]
[343515547,1732705851876,-500.0,0.00027397,3]
[343515548,1732705851886,-597.97,0.00027397,3]
[343515549,1732705851895,-597.97,0.00027397,3]
[343515550,1732705851904,-597.97,0.00027397,3]
[343515551,1732705851913,-597.97,0.00027397,3]
[343515552,1732705851923,-500.0,0.00027397,3]
[343515553,1732705851933,-500.0,0.00027397,3]
[343515554,1732705851943,-500.0,0.00027397,3]
[343515555,1732705851952,-500.0,0.00027397,3]
[343515556,1732705851961,-500.0,0.00027397,3]
[343515557,1732705851970,-500.0,0.00027397,3]
[343515558,1732705851980,-500.0,0.00027397,3]
[343515559,1732705851989,-500.0,0.00027397,3]
[343515560,1732705852001,-500.0,0.00027397,3]
[343515561,1732705852010,-500.0,0.00027397,3]
[343515562,1732705852020,-500.0,0.00027397,3]
[343515563,1732705852029,-500.0,0.00027397,3]
[343515564,1732705852038,-500.0,0.00027397,3]
[343515565,1732705852048,-500.0,0.00027397,3]
[343515566,1732705852058,-500.0,0.00027397,3]
[343515567,1732705852069,-500.0,0.00027397,3]
[343515568,1732705852082,-500.0,0.00027397,3]
[343515569,1732705852092,-500.0,0.00027397,3]
[343515570,1732705852101,-500.0,0.00027397,3]
[343515571,1732705852110,-328.85,0.00027397,3]
[343515572,1732705852121,-500.0,0.00027397,3]
[343515573,1732705852130,-500.0,0.00027397,3]
[343515574,1732705852139,-500.0,0.00027397,3]
[343515575,1732705852150,-500.0,0.00027397,3]
[343515576,1732705852160,-500.0,0.00027397,3]
[343515577,1732705852170,-500.0,0.00027397,3]
[343515578,1732705852179,-500.0,0.00027397,3]
[343515579,1732705852188,-500.0,0.00027397,3]
[343515580,1732705852198,-500.0,0.00027397,3]
[343515581,1732705852207,-500.0,0.00027397,3]
[343515582,1732705852216,-500.0,0.00027397,3]
[343515583,1732705852226,-500.0,0.00027397,3]
[343515584,1732705852235,-500.0,0.00027397,3]
[343515585,1732705852245,-500.0,0.00027397,3]
[343515586,1732705852256,-500.0,0.00027397,3]
[343515587,1732705852266,-500.0,0.00027397,3]
[343515588,1732705852276,-500.0,0.00027397,3]
[343515589,1732705852285,-500.0,0.00027397,3]
[343515590,1732705852294,-500.0,0.00027397,3]
[343515591,1732705852303,-506.33230676,0.00027397,3]
[343515592,1732705852312,-500.0,0.00027397,3]
[343515593,1732705852321,-500.0,0.00027397,3]
[343515594,1732705852330,-500.0,0.00027397,3]
[343515595,1732705852339,-500.0,0.00027397,3]
[343515596,1732705852348,-500.0,0.00027397,3]
[343515597,1732705852361,-500.0,0.00027397,3]
[343515598,1732705852370,-500.0,0.00027397,3]
[343515599,1732705852380,-500.0,0.00027397,3]
[343515600,1732705852390,-500.0,0.00027397,3]
[343515601,1732705852399,-500.0,0.00027397,3]
[343515602,1732705852409,-500.0,0.00027397,3]
[343515603,1732705852419,-486.35861424,0.00027397,3]
[343515604,1732705852428,-251.98251777,0.00027397,3]
[343515605,1732705852438,-153.0,0.00027811,2]
[343515606,1732705852448,-153.0,0.00027811,2]
[343515607,1732705852457,-153.0,0.00027811,2]
[343515608,1732705852467,-153.0,0.00027811,2]
[343515609,1732705852476,-153.0,0.00027811,2]
[343515610,1732705852485,-153.0,0.00027811,2]
[343515611,1732705852494,-1000.0,0.00027921,5]
[343515612,1732705852505,-263.87855238,0.00027921,5]
[343515613,1732705852514,-587.0,0.00028051,2]
[343515614,1732705852523,-933.86000651,0.00028242,2]
[343515615,1732705852532,-151.0,0.0002832,6]
[343515616,1732705852542,-344.718,0.00028466,2]
[343515617,1732705852551,-703.123,0.00028466,2]
[343515618,1732705852561,-2377.0,0.00028466,2]
[343515619,1732705852571,-494.08,0.00028515,3]
[343515620,1732705852580,-500.0,0.00028515,3]
[343515621,1732705852589,-510.45842344,0.00028516,3]
[343515622,1732705852599,-519.73,0.00028516,3]
[343515623,1732705852608,-153.0,0.00028598,2]
[343515624,1732705852618,-342.48899375,0.00028601,3]
[343515625,1732705852627,-500.0,0.00028601,3]
[343515626,1732705852636,-500.0,0.00028601,3]
[343515627,1732705852645,-597.97,0.00028601,3]
[343515628,1732705852655,-151.0,0.00028673,6]
[343515629,1732705852664,-310.40428253,0.00028727,2]
[343515630,1732705852674,-753.04,0.00028757,3]
[343515631,1732705852684,-376.52,0.00028757,3]
[343515632,1732705852693,-500.0,0.00028767,2]
[343515633,1732705852702,-587.0,0.00028851,2]
[343515634,1732705852712,-2000.00000001,0.00029,2]
[343515635,1732705852722,-151.0,0.00029026,6]
[343515636,1732705852731,-933.86000651,0.00029187,2]
[343515637,1732705852741,-151.0,0.00029378,6]
[343515638,1732705852752,-519.73,0.00029481,3]
[343515639,1732705852761,-519.73,0.00029481,3]
[343515640,1732705852771,-666.0,0.000296,2]
[343515641,1732705852781,-153.13,0.000296,31]
[343515642,1732705852790,-153.13,0.000296,31]
[343515643,1732705852800,-153.13,0.000296,31]
[343515644,1732705852809,-153.13,0.000296,31]
[343515645,1732705852819,-153.13,0.000296,31]
[343515646,1732705852828,-153.13,0.000296,31]
[343515647,1732705852837,-153.13,0.000296,31]
[343515648,1732705852846,-500.0,0.00029699,3]
[343515649,1732705852855,-500.0,0.00029699,3]
[343515650,1732705852865,-500.0,0.00029699,3]
[343515651,1732705852874,-4134.87571,0.000297,2]
[343515652,1732705852883,-151.0,0.00029731,7]
[343515653,1732705852892,-600.0,0.00029896,2]
[343515654,1732705852901,-500.0,0.00029999,3]
[343515655,1732705852911,-500.0,0.00029999,3]
[343515656,1732705852920,-500.0,0.00029999,3]
[343515657,1732705852929,-500.0,0.00029999,3]
[343515658,1732705852939,-500.0,0.00029999,3]
[343515659,1732705852948,-597.97,0.00029999,3]
[343515660,1732705852957,-1999.999999,0.0003,5]
[343515661,1732705852967,-209.0,0.0003,2]
[343515662,1732705852976,-933.86000651,0.00030131,2]
[343515663,1732705852985,-500.0,0.00030136,4]
[343515664,1732705852994,-943.788326,0.00030137,120]
[343515665,1732705853006,-310.02021413,0.00030163,2]
[343515666,1732705853015,-428.548861,0.00030192,30]
[343515667,1732705853025,-153.0,0.00030192,30]
[343515668,1732705853035,-306.0,0.00030192,30]
[343515669,1732705853044,-608.79657167,0.00030208,2]
[343515670,1732705853054,-467.6575396,0.00030329,30]
[343515671,1732705853063,-500.0,0.00030359,3]
[343515672,1732705853077,-226.47650436,0.00030359,3]
[343515673,1732705853086,-519.73,0.00030361,3]
[343515674,1732705853173,-823.0,0.00030424,2]
[343515675,1732705853183,-2500.0,0.00030436,3]
[343515676,1732705853192,-151.0,0.00030437,7]
[343515677,1732705853202,-2500.0,0.00030444,3]
[343515678,1732705853211,-2500.0,0.00030453,3]
[343515679,1732705853221,-163.40124022,0.00030462,10]
[343515680,1732705853231,-2500.0,0.00030462,3]
[343515681,1732705853240,-288.6655758,0.00030603,30]
[343515682,1732705853251,-1000.0,0.00030684,2]
[343515683,1732705853261,-1000.0,0.00030733,2]
[343515684,1732705853270,-305.06108372,0.00030803,10]
[343515685,1732705853279,-296.35742524,0.00030811,2]
[343515686,1732705853288,-442.82072915,0.00030811,2]
[343515687,1732705853297,-500.0,0.00030811,2]
[343515688,1732705853307,-383.11499498,0.00030811,2]
[343515689,1732705853316,-500.0,0.00030811,2]
[343515690,1732705853325,-213.59654148,0.00030811,2]
[343515691,1732705853334,-1000.0,0.00030812,2]
[343515692,1732705853343,-1000.0,0.00030814,2]
[343515693,1732705853352,-3200.0,0.00030884,2]
[343515694,1732705853361,-1451.52,0.000309,2]
[343515695,1732705853371,-2000.00000099,0.00031,7]
[343515696,1732705853380,-519.73,0.00031016,3]
[343515697,1732705853389,-519.73,0.00031017,3]
[343515698,1732705853398,-519.73,0.00031017,3]
[343515699,1732705853407,-519.73,0.00031017,3]
[343515700,1732705853416,-519.73,0.00031017,3]
[343515701,1732705853426,-519.92,0.00031017,3]
[343515702,1732705853435,-151.0,0.00031018,7]
[343515703,1732705853445,-500.0,0.00031029,3]
[343515704,1732705853454,-500.0,0.00031029,3]
[343515705,1732705853463,-500.0,0.00031054,3]
[343515706,1732705853472,-500.0,0.00031054,3]
[343515707,1732705853481,-597.97,0.00031054,3]
[343515708,1732705853490,-8093.00605863,0.00031076,2]
[343515709,1732705853502,-933.86000651,0.00031076,2]
[343515710,1732705853512,-500.0,0.00031085,11]
[343515711,1732705853521,-151.0,0.000311,10]
[343515712,1732705853531,-301.112233,0.000311,19]
[343515713,1732705853540,-200.0,0.000311,30]
[343515714,1732705853550,-616.0,0.000311,2]
[343515715,1732705853559,-160.0,0.00031105,5]
[343515716,1732705853569,-357.1340887,0.00031141,2]
[343515717,1732705853578,-500.0,0.00031141,2]
[343515718,1732705853587,-500.0,0.00031141,2]
[343515719,1732705853596,-500.0,0.00031141,2]
[343515720,1732705853606,-500.0,0.00031141,2]
[343515721,1732705853615,-500.0,0.00031141,2]
[343515722,1732705853624,-857.6075034,0.00031141,2]
[343515723,1732705853634,-500.0,0.00031141,3]
[343515724,1732705853643,-500.0,0.00031141,3]
[343515725,1732705853652,-500.0,0.00031141,3]
[343515726,1732705853661,-500.0,0.00031141,3]
[343515727,1732705853670,-597.97,0.00031141,3]
[343515728,1732705853679,-151.377586,0.00031142,7]
[343515729,1732705853688,-151.0,0.00031142,15]
[343515730,1732705853698,-150.17,0.00031142,10]
[343515731,1732705853707,-500.0,0.00031142,10]
[343515732,1732705853716,-160.0,0.00031148,3]
[343515733,1732705853725,-163.55989862,0.00031148,5]
[343515734,1732705853734,-155.372531,0.00031152,7]
[343515735,1732705853744,-155.372529,0.00031152,7]
[343515736,1732705853755,-500.0,0.00031153,3]
[343515737,1732705853764,-500.0,0.00031153,3]
[343515738,1732705853774,-500.0,0.00031153,3]
[343515739,1732705853783,-235.56,0.00031153,3]
[343515740,1732705853792,-597.97,0.00031153,3]
[343515741,1732705853801,-597.97,0.00031153,3]
[343515742,1732705853811,-500.0,0.00031154,3]
[343515743,1732705853820,-157.44421083,0.00031154,3]
[343515744,1732705853829,-500.0,0.00031154,3]
[343515745,1732705853838,-500.0,0.00031154,3]
[343515746,1732705853848,-500.0,0.00031154,3]
[343515747,1732705853857,-150.9,0.00031154,3]
[343515748,1732705853866,-500.0,0.00031154,3]
[343515749,1732705853875,-271.6,0.00031154,3]
[343515750,1732705853884,-597.97,0.00031154,3]
[343515751,1732705853893,-597.97,0.00031154,3]
[343515752,1732705853903,-597.97,0.00031154,3]
[343515753,1732705853912,-597.97,0.00031154,3]
[343515754,1732705853923,-597.97,0.00031154,3]
[343515755,1732705853932,-597.97,0.00031154,3]
[343515756,1732705853942,-597.97,0.00031154,3]
[343515757,1732705853952,-598.09000001,0.00031154,3]
[343515758,1732705853961,-151.0,0.00031155,7]
[343515759,1732705853971,-185.393897,0.00031155,7]
[343515760,1732705853980,-151.975287,0.00031155,7]
[343515761,1732705853989,-151.0,0.00031155,7]
[343515762,1732705853999,-151.0,0.00031155,7]
[343515763,1732705854008,-203.999936,0.00031155,7]
[343515764,1732705854018,-730.89386,0.00031155,7]
[343515765,1732705854027,-730.89386,0.00031155,7]
[343515766,1732705854037,-730.89386,0.00031155,7]
[343515767,1732705854046,-730.89386,0.00031155,7]
[343515768,1732705854055,-730.89386,0.00031155,7]
[343515769,1732705854065,-730.89386,0.00031155,7]
[343515770,1732705854076,-730.89386,0.00031155,7]
[343515771,1732705854089,-730.89386,0.00031155,7]
[343515772,1732705854104,-730.89386,0.00031155,7]
[343515773,1732705854118,-730.89386,0.00031155,7]
[343515774,1732705854129,-730.89386,0.00031155,7]
[343515775,1732705854140,-730.89386,0.00031155,7]
[343515776,1732705854153,-730.89386,0.00031155,7]
[343515777,1732705854166,-730.89386,0.00031155,7]
[343515778,1732705854178,-730.89386,0.00031155,7]
[343515779,1732705854190,-730.89386,0.00031155,7]
[343515780,1732705854202,-730.89386,0.00031155,7]
[343515781,1732705854215,-730.89386,0.00031155,7]
[343515782,1732705854228,-730.89386,0.00031155,7]
[343515783,1732705854240,-730.893856,0.00031155,7]
[343515784,1732705854251,-190.158834,0.00031155,7]
[343515785,1732705854262,-151.0,0.00031155,7]
[343515786,1732705854273,-151.0,0.00031155,7]
[343515787,1732705854285,-151.0,0.00031155,7]
[343515788,1732705854298,-151.0,0.00031155,7]
[343515789,1732705854310,-242.457128,0.00031155,7]
[343515790,1732705854323,-868.86277,0.00031155,7]
[343515791,1732705854335,-868.86277,0.00031155,7]
[343515792,1732705854348,-868.86277,0.00031155,7]
[343515793,1732705854360,-868.86277,0.00031155,7]
[343515794,1732705854373,-868.86277,0.00031155,7]
[343515795,1732705854385,-868.86277,0.00031155,7]
[343515796,1732705854397,-868.86277,0.00031155,7]
[343515797,1732705854409,-868.86277,0.00031155,7]
[343515798,1732705854422,-868.86277,0.00031155,7]
[343515799,1732705854435,-868.86277,0.00031155,7]
[343515800,1732705854447,-868.86277,0.00031155,7]
[343515801,1732705854459,-868.86277,0.00031155,7]
[343515802,1732705854471,-868.86277,0.00031155,7]
[343515803,1732705854482,-868.86277,0.00031155,7]
[343515804,1732705854495,-868.86277,0.00031155,7]
[343515805,1732705854508,-868.86277,0.00031155,7]
[343515806,1732705854519,-868.86277,0.00031155,7]
[343515807,1732705854531,-868.86277,0.00031155,7]
[343515808,1732705854543,-868.86277,0.00031155,7]
[343515809,1732705854555,-868.86276,0.00031155,7]
[343515810,1732705854565,-500.0,0.00031173,5]
[343515811,1732705854575,-500.0,0.00031173,5]
[343515812,1732705854586,-500.0,0.00031173,5]
[343515813,1732705854598,-500.0,0.00031173,5]
[343515814,1732705854612,-500.0,0.00031173,5]
[343515815,1732705854627,-500.13604431,0.00031173,5]
[343515816,1732705854637,-500.0,0.00031173,5]
[343515817,1732705854647,-500.0,0.00031173,5]
[343515818,1732705854658,-500.0,0.00031173,5]
[343515819,1732705854669,-515.66840132,0.00031173,5]
[343515820,1732705854681,-500.0,0.00031173,5]
[343515821,1732705854692,-500.0,0.00031173,5]
[343515822,1732705854702,-556.26444428,0.00031173,5]
[343515823,1732705854712,-161.22614263,0.00031173,5]
[343515824,1732705854723,-500.0,0.00031173,5]
[343515825,1732705854734,-151.0,0.00031176,7]
[343515826,1732705854745,-151.0,0.00031176,7]
[343515827,1732705854764,-151.0,0.00031176,7]
[343515828,1732705854774,-158.551776,0.00031176,7]
[343515829,1732705854785,-151.0,0.00031176,7]
[343515830,1732705854795,-151.0,0.00031176,7]
[343515831,1732705854806,-151.0,0.00031176,7]
[343515832,1732705854816,-158.50369,0.00031176,7]
[343515833,1732705854827,-151.0,0.00031176,7]
[343515834,1732705854838,-10000.0,0.00031177,12]
[343515835,1732705854848,-10000.0,0.00031177,13]
[343515836,1732705854859,-10000.0,0.00031177,6]
[343515837,1732705854871,-8571.41873526,0.00031178,2]
[343515838,1732705854882,-243509.34561592,0.00031178,10]
[343515839,1732705854893,-519.47906134,0.00031178,2]
[343515840,1732705854903,-199.74267752,0.00031178,14]
[343515841,1732705854915,-581445.71163962,0.00031178,10]
[343515842,1732705854925,-551727.35735976,0.00031178,10]
[343515843,1732705855119,-1138.06921089,0.00031178,10]
[343515844,1732705855133,-29507.68401,0.00031178,10]
[343515845,1732705855322,156.0,0.00022,2]
[343515846,1732705855364,160.0,0.00022,2]
[343515847,1732705985171,249.341799,0.00013973,2]
[343515848,1732705985341,249.341799,0.00020447,2]
[343515849,1732706033716,5000.0,0.00022001,2]
[343515850,1732706049187,863.9628655,0.00022001,2]
[343515858,1732706127212,500000.0,0.0001,2]
[343515863,1732706445839,171.0,0.00022,2]
[343515866,1732706741438,159.9,0.00026,60]
[343515867,1732706745855,203.0,0.00022,2]
[343515868,1732706746180,161.0,0.00022,2]
[343515870,1732706769622,159.9,0.00022,10]
[343515873,1732706833135,-156.0,0.00022192,2]
[343515874,1732706833159,-171.0,0.00022192,2]
[343515875,1732706833183,-174.58251434,0.00023,5]
[343515876,1732706833206,-156.0,0.00023014,2]
[343515877,1732706833231,-171.0,0.00023014,2]
[343515878,1732706833253,-195.12312738,0.00023556,2]
[343515879,1732706833276,-163.0,0.00024164,2]
[343515880,1732706833298,-178.0,0.00024164,2]
[343515881,1732706833325,-250.0,0.0002478,2]
[343515882,1732706833354,-502.522941,0.00024791,2]
[343515883,1732706833377,-168.058219,0.00024941,2]
[343515884,1732706833399,-417.5840638,0.00025162,2]
[343515885,1732706833422,-935.75594705,0.00025208,2]
[343515886,1732706842738,232.390003,0.00013973,2]
[343515887,1732706842962,232.390003,0.00020447,2]
[343515888,1732706851633,-562.19215398,0.00025208,2]
[343515889,1732706899912,362.57512031,0.00021,5]
[343515890,1732706902996,9266.97425874,0.000125,2]
[343515891,1732706912316,1301.74542964,0.000176,2]
[343515893,1732706924283,998.32700089,0.0001,2]
[343515894,1732706924616,38854.60365506,0.0001999,2]
[343515895,1732706927705,1000.0,0.0001,2]
[343515896,1732706928444,10876.22911943,0.000109,2]
[343515907,1732707032401,-3495.162415,0.00025045,2]
[343515908,1732707032412,-302.69733596,0.00025082,2]
[343515909,1732707032422,-200.52721089,0.00025108,4]
[343515910,1732707032432,-931.75175287,0.00025208,2]
[343515911,1732707032442,-900.0,0.00025469,3]
[343515912,1732707032452,-3495.162415,0.0002573,2]
[343515913,1732707032462,-300.0,0.00025758,2]
[343515914,1732707032471,-10005.0,0.00025758,2]
[343515915,1732707032481,-156.0,0.00025775,2]
[343515916,1732707032491,-171.0,0.00025775,2]
[343515917,1732707032504,-284.85090151,0.000259,2]
[343515918,1732707032517,-5000.0,0.00025956,2]
[343515919,1732707032526,-9617.10407296,0.00026,3]
[343515920,1732707032539,-10.27223161,0.00026307,2]
[343515921,1732707032552,-157.66397839,0.00026307,2]
[343515922,1732707032561,-3495.162415,0.00026415,2]
[343515923,1732707032570,-167.93621,0.000267,2]
[343515924,1732707032704,-500.0,0.00026867,2]
[343515925,1732707032715,-160.09606393,0.00026867,2]
[343515926,1732707032725,-232.390003,0.00026921,2]
[343515927,1732707032735,-343.37101071,0.00027,60]
[343515929,1732707032744,-167.93621,0.00027093,2]
[343515931,1732707032754,-500.91785115,0.00027193,2]
[343515933,1732707032763,-500.0,0.0002726,2]
[343515935,1732707032772,-500.0,0.0002726,2]
[343515937,1732707032782,-996.73360961,0.00027273,2]
[343515939,1732707032796,-180.776,0.00027372,16]
[343515940,1732707032805,-500.0,0.00027373,2]
[343515941,1732707032815,-500.0,0.00027373,2]
[343515942,1732707032824,-527.70087179,0.00027373,2]
[343515943,1732707032834,-501.03367693,0.00027373,2]
[343515944,1732707032843,-500.0,0.00027373,2]
[343515945,1732707032852,-500.0,0.00027373,2]
[343515947,1732707032862,-157.95450207,0.00027373,2]